{"text_format":"3","workbook":"xlsx","n_sheets":6,"sheets":["СЕМЕСТР","БАЛИ","БЮДЖЕТ","ЧИСТІ ЩОМІСЯЧНІ ВИТРАТИ","ВИТРАТИ ЗА СЕМЕСТР","КНИГИ"],"not_rendered":{"defined_names":21},"read":"whole","date_system":"1900"}

{"sheet":"СЕМЕСТР","index":0,"n_rows":29,"n_cols":9,"rows_kept":29,"merged":[[2,3,2,4]]}
[null,"РОЗКЛАД ЗАНЯТЬ"]
[null,"ОСІННІЙ СЕМЕСТР"]
[null,null,"ЧАС ПОЧАТКУ","ПРОМІЖОК ЧАСУ",null,"РІК"]
[null,null,"09:00:00",60,"(у хвилинах)"]
[null,"ЧАС ","ПН","ВТ","СР","ЧТ","ПТ","СБ","НД"]
[null,{"$f":"Час_початку+TIME(0,(ROW(A1)-1)*Інтервал_часу,0)","v":"09:00:00"},"Сніданок","Сніданок","Сніданок","Сніданок","Сніданок"]
[null,"10:00:00","Економіка: лекція, корп. В, ауд. 256"]
[null,"11:00:00",{"$nulls":3},"Фізика: лабораторне заняття \nкорп. J, ауд. 309"]
[null,"12:00:00"]
[null,"13:00:00"]
[null,"14:00:00"]
[null,"15:00:00"]
[null,"16:00:00"]
[null,"17:00:00"]
[null,"18:00:00"]
[null,"19:00:00"]
[null,"20:00:00"]
[null,"21:00:00"]
[null,"22:00:00"]
[null,"23:00:00"]
[null,1]
[null,1.0416666666666665]
[null,1.0833333333333335]
[null,1.125]
[null,1.1666666666666665]
[null,1.2083333333333335]
[null,1.25]
[null,1.2916666666666665]
[null,1.3333333333333335]

{"sheet":"БАЛИ","index":1,"n_rows":17,"n_cols":8,"rows_kept":17}
[null,"НАВЧАЛЬНИЙ ЗАКЛАД"]
[null,"ПЛАНУВАЛЬНИК КРЕДИТІВ"]
[null,"Назва ступеня",{"$f":"Рік","v":"РІК"}]
[null,"ЗАГАЛЬНИЙ ПРОГРЕС",null,"ЗАГАЛЬНИЙ ПРОГРЕС"]
[null,{"$f":"AVERAGE(Курси[ОЦІНКА])","v":3.5},{"$f":"IFERROR(TEXT(AVERAGEIF(Курси[ВИКОНАНО],\"Так\",Курси[ОЦІНКА]),\"0,00\"),\"0,00\")&\" Поточний середній бал\"","v":"3,50 Поточний середній бал"},{"$f":"COUNTIF(Курси[ВИКОНАНО],\"Так\")/COUNTA(Курси[НАЗВА КУРСУ])","v":0.6666666666666666},{"$f":"TEXT(COUNTIF(Курси[ВИКОНАНО],\"Так\")/COUNTA(Курси[НАЗВА КУРСУ]),\"0%\")&\" виконано\"","v":"67% виконано"}]
[null,"Примітка. Наведене далі зведення кредитів автоматично заповнюється вашими записами в таблиці навчальних курсів нижче"]
[null,"ВИМОГА","УСЬОГО БАЛІВ","ОТРИМАНО","НЕОБХІДНО"]
[null,"Основна дисципліна",{"$f":"IF(SUMIF(Курси[ВИМОГА],БАЛИ!$B8,Курси[БАЛИ])=0,\"0\",SUMIF(Курси[ВИМОГА],БАЛИ!$B8,Курси[БАЛИ]))","v":4},{"$f":"SUMIFS(Курси[БАЛИ],Курси[ВИМОГА],БАЛИ!$B8,Курси[ВИКОНАНО],\"Так\")","v":4},{"$f":"SUMIF(Курси[ВИМОГА],БАЛИ!$B8,Курси[БАЛИ])-SUMIFS(Курси[БАЛИ],Курси[ВИМОГА],БАЛИ!$B8,Курси[ВИКОНАНО],\"Так\")","v":0}]
[null,"Друга дисципліна",{"$f":"IF(SUMIF(Курси[ВИМОГА],БАЛИ!$B9,Курси[БАЛИ])=0,\"0\",SUMIF(Курси[ВИМОГА],БАЛИ!$B9,Курси[БАЛИ]))","v":3},{"$f":"SUMIFS(Курси[БАЛИ],Курси[ВИМОГА],БАЛИ!$B9,Курси[ВИКОНАНО],\"Так\")","v":0},{"$f":"SUMIF(Курси[ВИМОГА],БАЛИ!$B9,Курси[БАЛИ])-SUMIFS(Курси[БАЛИ],Курси[ВИМОГА],БАЛИ!$B9,Курси[ВИКОНАНО],\"Так\")","v":3}]
[null,"Факультативний курс",{"$f":"IF(SUMIF(Курси[ВИМОГА],БАЛИ!$B10,Курси[БАЛИ])=0,\"0\",SUMIF(Курси[ВИМОГА],БАЛИ!$B10,Курси[БАЛИ]))","v":2},{"$f":"SUMIFS(Курси[БАЛИ],Курси[ВИМОГА],БАЛИ!$B10,Курси[ВИКОНАНО],\"Так\")","v":2},{"$f":"SUMIF(Курси[ВИМОГА],БАЛИ!$B10,Курси[БАЛИ])-SUMIFS(Курси[БАЛИ],Курси[ВИМОГА],БАЛИ!$B10,Курси[ВИКОНАНО],\"Так\")","v":0}]
[null,"Загальний курс",{"$f":"IF(SUMIF(Курси[ВИМОГА],БАЛИ!$B11,Курси[БАЛИ])=0,\"0\",SUMIF(Курси[ВИМОГА],БАЛИ!$B11,Курси[БАЛИ]))","v":"0"},{"$f":"SUMIFS(Курси[БАЛИ],Курси[ВИМОГА],БАЛИ!$B11,Курси[ВИКОНАНО],\"Так\")","v":0},{"$f":"SUMIF(Курси[ВИМОГА],БАЛИ!$B11,Курси[БАЛИ])-SUMIFS(Курси[БАЛИ],Курси[ВИМОГА],БАЛИ!$B11,Курси[ВИКОНАНО],\"Так\")","v":0}]
[null,"Усього",{"$f":"SUBTOTAL(109,БАЛИ!$C$8:$C$11)","v":9},{"$f":"SUBTOTAL(109,БАЛИ!$D$8:$D$11)","v":6},{"$f":"SUBTOTAL(109,БАЛИ!$E$8:$E$11)","v":3}]
[null,"Курси"]
[null,"НАЗВА КУРСУ","КУРС №","ВИМОГА","БАЛИ","ВИКОНАНО","ОЦІНКА","СЕМЕСТР"]
[null,"Курс 1","Номер","Основна дисципліна",4,"Так",{"v":4,"d":"4.0"},"Семестр 1"]
[null,"Курс 2","Номер","Друга дисципліна",3,"Ні",null,"Семестр 1"]
[null,"Курс 3","Номер","Факультативний курс",2,"Так",{"v":3,"d":"3.0"},"Семестр 1"]

{"sheet":"БЮДЖЕТ","index":2,"n_rows":15,"n_cols":4,"rows_kept":15,"merged":[[5,1,5,2]]}
[null,{"$f":"Навчальний_заклад","v":"НАВЧАЛЬНИЙ ЗАКЛАД"}]
[null,"КОНТРОЛЬ БЮДЖЕТУ"]
[null,"Мій бюджет",{"$f":"Рік","v":"РІК"}]
[null,"ВИТРАЧЕНИЙ ВІДСОТОК ВІД ПРИБУТКУ"]
[null,{"$f":"ЧИСТІ_ЩОМІСЯЧНІ_ВИТРАТИ/ЧИСТИЙ_ЩОМІСЯЧНИЙ_ДОХІД","v":{"v":0.7454545454545455,"d":"1₴"}}]
[null,{"$f":"B5","v":0.7454545454545455}]
[null,"ЧИСТИЙ ЩОМІСЯЧНИЙ ДОХІД","ЧИСТІ ЩОМІСЯЧНІ ВИТРАТИ","БАЛАНС"]
[null,{"$f":"C10","v":{"v":2750,"d":"2,750₴"}},{"$f":"'ЧИСТІ ЩОМІСЯЧНІ ВИТРАТИ'!C4+'ВИТРАТИ ЗА СЕМЕСТР'!D4","v":{"v":2050,"d":"2,050₴"}},{"$f":"ЧИСТИЙ_ЩОМІСЯЧНИЙ_ДОХІД-ЧИСТІ_ЩОМІСЯЧНІ_ВИТРАТИ","v":{"v":700,"d":"700₴"}}]
[null,"Місяців у семестрі",4]
[null,"ЩОМІСЯЧНИЙ ДОХІД",{"$f":"SUM(Щомісячний_дохід[СУМА])","v":{"v":2750,"d":"2,750₴"}}]
[null,"СТАТТЯ","СУМА"]
[null,"Фіксований прибуток",{"v":1500,"d":"1,500₴"}]
[null,"Фінансова допомога",{"v":500,"d":"500₴"}]
[null,"Кредити",{"v":500,"d":"500₴"}]
[null,"Інший дохід",{"v":250,"d":"250₴"}]

{"sheet":"ЧИСТІ ЩОМІСЯЧНІ ВИТРАТИ","index":3,"n_rows":15,"n_cols":3,"rows_kept":15}
[null,{"$f":"Навчальний_заклад","v":"НАВЧАЛЬНИЙ ЗАКЛАД"}]
[null,"КОНТРОЛЬ БЮДЖЕТУ"]
[null,"Щомісячні витрати",{"$f":"Рік","v":"РІК"}]
[null,"ЩОМІСЯЧНІ ВИТРАТИ",{"$f":"SUM(Щомісячні_витрати[СУМА])","v":{"v":1675,"d":"1,675₴"}}]
[null,"СТАТТЯ","СУМА"]
[null,"Оренда",{"v":300,"d":"300₴"}]
[null,"Комунальні послуги",{"v":50,"d":"50₴"}]
[null,"Мобільний телефон",{"v":75,"d":"75₴"}]
[null,"Продукти",{"v":250,"d":"250₴"}]
[null,"Витрати на авто",{"v":50,"d":"50₴"}]
[null,"Студентські кредити",{"v":500,"d":"500₴"}]
[null,"Кредитні картки",{"v":275,"d":"275₴"}]
[null,"Страхування",{"v":125,"d":"125₴"}]
[null,"Розваги",{"v":50,"d":"50₴"}]
[null,"Різне",{"v":0,"d":"0₴"}]

{"sheet":"ВИТРАТИ ЗА СЕМЕСТР","index":4,"n_rows":11,"n_cols":4,"rows_kept":11}
[null,{"$f":"Навчальний_заклад","v":"НАВЧАЛЬНИЙ ЗАКЛАД"}]
[null,"КОНТРОЛЬ БЮДЖЕТУ"]
[null,"Витрати за семестр",{"$f":"Рік","v":"РІК"}]
[null,"ВИТРАТИ ЗА СЕМЕСТР (усього в місяць)",{"$f":"SUM(Витрати_за_семестр[СУМА])","v":{"v":1500,"d":"1,500₴"}},{"$f":"SUM(Витрати_за_семестр[У МІСЯЦЬ])","v":{"v":375,"d":"375₴"}}]
[null,"СТАТТЯ","СУМА","У МІСЯЦЬ"]
[null,"Навчання",{"v":750,"d":"750₴"},{"$f":"Витрати_за_семестр[[#This Row],[СУМА]]/Місяців_у_семестрі","v":{"v":187.5,"d":"188₴"}}]
[null,"Плата за користування лабораторією",{"v":250,"d":"250₴"},{"$f":"Витрати_за_семестр[[#This Row],[СУМА]]/Місяців_у_семестрі","v":{"v":62.5,"d":"63₴"}}]
[null,"Книги",{"v":500,"d":"500₴"},{"$f":"Витрати_за_семестр[[#This Row],[СУМА]]/Місяців_у_семестрі","v":{"v":125,"d":"125₴"}}]
[null,"Депозитні вклади",{"v":0,"d":"0₴"},{"$f":"Витрати_за_семестр[[#This Row],[СУМА]]/Місяців_у_семестрі","v":{"v":0,"d":"0₴"}}]
[null,"Транспорт",{"v":0,"d":"0₴"},{"$f":"Витрати_за_семестр[[#This Row],[СУМА]]/Місяців_у_семестрі","v":{"v":0,"d":"0₴"}}]
[null,"Інші платежі",{"v":0,"d":"0₴"},{"$f":"Витрати_за_семестр[[#This Row],[СУМА]]/Місяців_у_семестрі","v":{"v":0,"d":"0₴"}}]

{"sheet":"КНИГИ","index":5,"n_rows":7,"n_cols":7,"rows_kept":7}
[null,{"$f":"Навчальний_заклад","v":"НАВЧАЛЬНИЙ ЗАКЛАД"}]
[null,"КОНТРОЛЬ КНИГ"]
[null,"Список книг"]
[null,"НАЗВА","АВТОР","КУРС","ДЕ ПРИДБАТИ?","ISBN","НОТАТКИ"]
[null,"Назва книги","Автор","Курс","Місце","Номер"]
[null,"Назва книги","Автор","Курс","Місце","Номер"]
[null,"Назва книги","Автор","Курс","Місце","Номер"]